bitfinex/quotes_BTCUSD_20240620
["timestamp","ask_amount","ask_price","bid_price","bid_amount"]
[1718862441233,0.76173139,65549.0,65548.0,0.17395997]
[1718862441646,0.76173139,65549.0,65548.0,0.17356112]
[1718862442051,0.76173139,65549.0,65548.0,0.17395997]
[1718862442261,0.76173139,65549.0,65548.0,0.17356112]
[1718862442429,1.06684639,65549.0,65548.0,0.021]
[1718862442631,1.16704639,65549.0,65548.0,0.021]
[1718862443347,1.29866267,65549.0,65548.0,0.021]
[1718862444142,1.29866267,65549.0,65548.0,0.011]
[1718862444592,1.29866267,65549.0,65548.0,0.013]
[1718862444801,1.29866267,65549.0,65548.0,0.002]
[1718862445157,1.29866267,65549.0,65548.0,0.005]
[1718862445358,1.38998535,65549.0,65548.0,0.005]
[1718862445613,1.29866267,65549.0,65548.0,0.005]
[1718862449403,1.39002313,65549.0,65548.0,0.005]
[1718862450208,1.38500685,65549.0,65548.0,0.005]
[1718862450817,1.38500492,65549.0,65548.0,0.005]
[1718862454409,1.29364639,65549.0,65548.0,0.005]
[1718862459594,1.35274639,65549.0,65548.0,0.005]
[1718862460504,1.44410537,65549.0,65548.0,0.005]
[1718862460677,1.38500537,65549.0,65548.0,0.005]
[1718862460857,1.44410537,65549.0,65548.0,0.005]
[1718862462437,1.35274639,65549.0,65548.0,0.005]
[1718862462922,1.35776267,65549.0,65548.0,0.005]
[1718862463126,1.76287767,65549.0,65548.0,0.005]
[1718862464740,1.78695736,65549.0,65548.0,0.005]
[1718862465174,1.92399583,65549.0,65548.0,0.005]
[1718862465390,1.78695736,65549.0,65548.0,0.005]
[1718862466323,1.76287767,65549.0,65548.0,0.005]
[1718862466526,1.70377767,65549.0,65548.0,0.005]
[1718862466766,1.76287767,65549.0,65548.0,0.005]
[1718862466966,1.78518259,65549.0,65548.0,0.005]
[1718862467175,1.76287767,65549.0,65548.0,0.005]
[1718862467366,1.76287767,65549.0,65548.0,0.003]
[1718862467580,1.068032,65541.0,65540.0,0.000946]
[1718862467781,1.127132,65541.0,65540.0,0.000946]
[1718862468011,1.432284,65541.0,65540.0,0.000946]
[1718862468451,1.433124,65541.0,65540.0,0.000946]
[1718862469342,1.433124,65541.0,65540.0,0.001946]
[1718862469963,1.374024,65541.0,65540.0,0.001946]
[1718862470205,1.433124,65541.0,65540.0,0.001946]
[1718862471363,1.433124,65541.0,65540.0,0.003946]
[1718862472301,1.127972,65541.0,65540.0,0.003946]
[1718862472919,1.24234361,65541.0,65540.0,0.003946]
[1718862473386,1.127972,65541.0,65540.0,0.003946]
[1718862474809,1.13298828,65541.0,65540.0,0.003946]
[1718862475153,1.2702683,65541.0,65540.0,0.003946]
[1718862475493,1.76684028,65541.0,65540.0,0.003946]
[1718862475717,1.702724,65541.0,65540.0,0.003946]
[1718862475909,1.76684028,65541.0,65540.0,0.003946]
[1718862476057,1.76684028,65541.0,65540.0,0.002946]
[1718862476260,1.76684028,65541.0,65540.0,0.000946]
[1718862476508,1.76784028,65541.0,65540.0,0.000946]
[1718862476903,1.398572,65541.0,65540.0,0.000946]
[1718862477084,1.228972,65541.0,65540.0,0.000946]
[1718862477482,1.22891328,65541.0,65540.0,0.000946]
[1718862478225,1.23392956,65541.0,65540.0,0.000946]
[1718862478377,1.23492956,65541.0,65540.0,0.000946]
[1718862478584,1.22991328,65541.0,65540.0,0.000946]
[1718862479186,1.23492956,65541.0,65540.0,0.000946]
[1718862480136,1.25469692,65541.0,65540.0,0.000946]
[1718862480628,1.50074892,65541.0,65540.0,0.000946]
[1718862480889,1.25469692,65541.0,65540.0,0.000946]
[1718862481248,1.39192355,65541.0,65540.0,0.000946]
[1718862481779,1.41084003,65541.0,65540.0,0.000946]
[1718862481939,1.2145134,65541.0,65540.0,0.000946]
[1718862482257,1.2736134,65541.0,65540.0,0.000946]
[1718862482887,1.2726134,65541.0,65540.0,0.000946]
[1718862483043,1.2125134,65541.0,65540.0,0.000946]
[1718862483248,1.2716134,65541.0,65540.0,0.000946]
[1718862483589,1.2135134,65541.0,65540.0,0.000946]
[1718862483789,1.2726134,65541.0,65540.0,0.000946]
[1718862484348,1.2736134,65541.0,65540.0,0.000946]
[1718862485000,1.2726134,65541.0,65540.0,0.000946]
[1718862485203,1.2736134,65541.0,65540.0,0.000946]
[1718862485404,1.2736134,65541.0,65540.0,0.00134485]
[1718862485607,1.2736134,65541.0,65540.0,0.000946]
[1718862487862,1.2736134,65541.0,65540.0,0.00134485]
[1718862490980,1.12109612,65541.0,65540.0,0.00134485]
[1718862491318,1.27367212,65541.0,65540.0,0.00134485]
[1718862492060,1.27367212,65541.0,65540.0,0.000946]
[1718862492560,1.2786884,65541.0,65540.0,0.000946]
[1718862492927,1.21457212,65541.0,65540.0,0.000946]
[1718862493133,1.27367212,65541.0,65540.0,0.000946]
[1718862493676,1.27261605,65541.0,65540.0,0.00134485]
[1718862495571,0.02677276,65541.0,65540.0,0.40788969]
[1718862495785,0.02677276,65541.0,65540.0,0.41788969]
[1718862496004,0.02677276,65541.0,65540.0,0.40788969]
[1718862496346,0.02577276,65541.0,65540.0,0.40788969]
[1718862496554,0.02577276,65541.0,65540.0,0.41088969]
[1718862496992,0.02577276,65541.0,65540.0,0.40788969]
[1718862497221,0.02577276,65541.0,65540.0,0.41788969]
[1718862497430,0.02477276,65541.0,65540.0,0.41188969]
[1718862497627,0.02393276,65541.0,65540.0,0.41188969]
[1718862497890,0.02393276,65541.0,65540.0,0.42388969]
[1718862498090,0.02393276,65541.0,65540.0,0.41388969]
[1718862498269,0.02393276,65541.0,65540.0,0.41188969]
[1718862498632,0.02393276,65541.0,65540.0,0.56846769]
[1718862499364,0.02393276,65541.0,65540.0,0.41588969]
[1718862503870,0.02479276,65541.0,65540.0,0.41588969]
[1718862521345,0.02563276,65541.0,65540.0,0.41588969]
[1718862524415,0.02479276,65541.0,65540.0,0.41588969]
[1718862529278,0.02479276,65541.0,65540.0,0.42588969]
[1718862529481,0.02479276,65541.0,65540.0,1.55303869]
[1718862529684,0.00086,65541.0,65540.0,1.55303869]
[1718862530726,0.00086,65541.0,65540.0,1.54903869]
[1718862531678,0.00086,65541.0,65540.0,1.54503869]
[1718862531886,0.00086,65541.0,65540.0,1.55903869]
[1718862532934,0.00086,65541.0,65540.0,1.57303869]
[1718862537914,0.00086,65541.0,65540.0,1.51393869]
[1718862550147,0.00086,65541.0,65540.0,1.20878169]
[1718862554039,0.00086,65541.0,65540.0,0.18150712]
[1718862554191,0.386936,65541.0,65540.0,0.19688969]
[1718862556505,0.387776,65541.0,65540.0,0.19688969]
[1718862557589,0.386936,65541.0,65540.0,0.19688969]
[1718862558400,0.153436,65541.0,65540.0,0.19688969]
[1718862558728,0.00086,65541.0,65540.0,0.76712469]
[1718862558891,0.00086,65541.0,65540.0,1.07228169]
[1718862561106,0.00086,65541.0,65540.0,1.19938169]
[1718862561497,0.00086,65541.0,65540.0,1.56363869]
[1718862561702,0.00086,65541.0,65540.0,1.56563869]
[1718862561919,0.00086,65541.0,65540.0,1.56363869]
[1718862562470,0.00086,65541.0,65540.0,1.54963869]
[1718862562666,0.00086,65541.0,65540.0,1.53563869]
[1718862563022,0.00086,65541.0,65540.0,1.56563869]
[1718862564287,0.00086,65541.0,65540.0,2.16769569]
[1718862564486,0.00086,65541.0,65540.0,2.20469569]
[1718862566088,0.00086,65541.0,65540.0,2.19069569]
[1718862566291,0.00086,65541.0,65540.0,2.17669569]
[1718862566743,0.00086,65541.0,65540.0,2.19069569]
[1718862568120,0.00086,65541.0,65540.0,2.20469569]
[1718862568531,0.00086,65541.0,65540.0,2.10269569]
[1718862568831,0.00086,65541.0,65540.0,2.20469569]
[1718862569241,0.00086,65541.0,65540.0,2.10269569]
[1718862569614,0.00086,65541.0,65540.0,2.20469569]
[1718862569958,0.00086,65541.0,65540.0,2.10269569]
[1718862571559,0.00086,65541.0,65540.0,2.20469569]
[1718862575648,0.00086,65541.0,65540.0,2.25469569]
[1718862580223,0.00086,65541.0,65540.0,2.28531569]
[1718862581075,0.00086,65541.0,65540.0,2.27131569]
[1718862581298,0.00086,65541.0,65540.0,2.28531569]
[1718862581638,0.00086,65541.0,65540.0,2.27131569]
[1718862581861,0.00086,65541.0,65540.0,2.28531569]
[1718862582272,0.00086,65541.0,65540.0,2.21221569]
[1718862582465,0.00086,65541.0,65540.0,2.27131569]
[1718862582966,0.00086,65541.0,65540.0,2.28531569]
[1718862583157,0.02804958,65560.0,65540.0,2.28531569]
[1718862583158,0.02408405,65561.0,65560.0,0.47297857]
[1718862583468,0.02408405,65561.0,65560.0,0.62553969]
[1718862583669,0.02408405,65561.0,65560.0,0.62751969]
[1718862584649,0.02408405,65561.0,65560.0,0.64151969]
[1718862586058,0.11458405,65561.0,65560.0,0.64151969]
[1718862586258,0.11458405,65561.0,65560.0,0.65351969]
[1718862586861,0.26711305,65561.0,65560.0,0.02798]
[1718862587062,0.93633105,65561.0,65560.0,0.02798]
[1718862587486,1.24139005,65561.0,65560.0,0.02798]
[1718862587963,1.24139005,65561.0,65560.0,0.01398]
[1718862588288,1.24139005,65561.0,65560.0,0.02198]
[1718862588488,1.24139005,65561.0,65560.0,0.00998]
[1718862588886,1.24139005,65561.0,65560.0,0.01698]
[1718862590890,1.24640633,65561.0,65560.0,0.01698]
[1718862591130,1.35571764,65561.0,65560.0,0.01698]
[1718862591380,1.24640633,65561.0,65560.0,0.01698]
[1718862593851,1.24139005,65561.0,65560.0,0.01698]
[1718862594063,1.24139005,65561.0,65560.0,0.01608]
[1718862594284,1.25089903,65561.0,65560.0,0.01608]
[1718862600188,1.250899,65561.0,65560.0,0.01608]
[1718862600532,1.250899,65561.0,65560.0,0.01647885]
[1718862600731,1.250899,65561.0,65560.0,0.01608]
[1718862600954,1.250899,65561.0,65560.0,0.017026]
[1718862601331,1.251759,65561.0,65560.0,0.017026]
[1718862602564,1.24225005,65561.0,65560.0,0.017026]
[1718862602774,1.25175901,65561.0,65560.0,0.017026]
[1718862603181,1.19265901,65561.0,65560.0,0.017026]
[1718862603431,1.25175901,65561.0,65560.0,0.017026]
[1718862603843,1.251759,65561.0,65560.0,0.017026]
[1718862604757,1.25175901,65561.0,65560.0,0.017026]
[1718862605284,1.24225005,65561.0,65560.0,0.017026]
[1718862609110,1.25175901,65561.0,65560.0,0.017026]
[1718862611393,1.24225005,65561.0,65560.0,0.017026]
[1718862612131,1.25175901,65561.0,65560.0,0.017026]
[1718862612533,1.19265901,65561.0,65560.0,0.017026]
[1718862612734,1.25175901,65561.0,65560.0,0.017026]
[1718862613136,1.19265901,65561.0,65560.0,0.017026]
[1718862613355,1.25175901,65561.0,65560.0,0.017026]
[1718862614132,1.09788469,65561.0,65560.0,0.017026]
[1718862614275,1.15698469,65561.0,65560.0,0.017026]
[1718862615093,1.15698469,65561.0,65560.0,0.01742485]
[1718862616882,0.79282569,65561.0,65560.0,0.01742485]
[1718862617355,0.85192569,65561.0,65560.0,0.01742485]
[1718862617565,0.85192557,65561.0,65560.0,0.01742485]
[1718862617907,0.54686657,65561.0,65560.0,0.03240857]
[1718862619607,0.85192557,65561.0,65560.0,0.017026]
[1718862619828,0.85192557,65561.0,65560.0,0.03240857]
[1718862620564,0.85192557,65561.0,65560.0,0.01742485]
[1718862621300,0.85192557,65561.0,65560.0,0.03240857]
[1718862621489,0.00086,65561.0,65560.0,0.56630169]
[1718862622443,0.00086,65561.0,65560.0,0.55930169]
[1718862622643,0.00086,65561.0,65560.0,0.55130169]
[1718862622988,0.00086,65561.0,65560.0,0.56422169]
[1718862623144,0.00086,65561.0,65560.0,0.57422169]
[1718862623515,0.00076,65561.0,65560.0,0.57422169]
[1718862623926,0.00066,65561.0,65560.0,0.58122169]
[1718862624373,0.00046,65561.0,65560.0,0.57422169]
[1718862624778,0.00036,65561.0,65560.0,0.58822169]
[1718862624953,0.00026,65561.0,65560.0,0.58822169]
[1718862625438,0.00016,65561.0,65560.0,0.89328569]
[1718862625672,6e-05,65561.0,65560.0,0.89328569]
[1718862625857,0.00857,65562.0,65560.0,0.74075369]
[1718862626058,0.00857,65562.0,65561.0,0.55367269]
[1718862626232,0.00847,65562.0,65561.0,0.55367269]
[1718862626657,0.01787739,65562.0,65561.0,0.55367269]
[1718862626858,0.01777739,65562.0,65561.0,0.55367269]
[1718862627060,0.01777739,65562.0,65561.0,0.85993169]
[1718862627260,0.00817,65562.0,65561.0,0.85993169]
[1718862627528,0.0065457,65562.0,65561.0,0.85993169]
[1718862627642,0.01605295,65562.0,65561.0,0.85993169]
[1718862627844,0.01595295,65562.0,65561.0,0.85993169]
[1718862628252,0.01585295,65562.0,65561.0,0.86993169]
[1718862628451,0.0157528,65562.0,65561.0,1.17499069]
[1718862628595,0.0157528,65562.0,65561.0,1.18899069]
[1718862628797,0.0157528,65562.0,65561.0,1.20299069]
[1718862629422,0.0157528,65562.0,65561.0,0.88793169]
[1718862631459,0.0062457,65562.0,65561.0,0.43034369]
[1718862631667,0.0062457,65562.0,65561.0,0.58287269]
[1718862631820,0.0062457,65562.0,65561.0,1.20299069]
[1718862632840,0.0062457,65562.0,65561.0,1.49404969]
[1718862633043,0.0062457,65562.0,65561.0,1.50304969]
[1718862633247,0.0062457,65562.0,65561.0,1.51704969]
[1718862634245,0.0062457,65562.0,65561.0,1.56704969]
[1718862634479,0.0062457,65562.0,65561.0,1.56584969]
[1718862635027,0.0062457,65562.0,65561.0,1.57984969]
[1718862635416,0.0062457,65562.0,65561.0,1.56584969]
[1718862635710,0.0062457,65562.0,65561.0,1.57984969]
[1718862637284,0.15861,65570.0,65561.0,1.57984969]
[1718862637285,0.15861,65570.0,65569.0,0.47291557]
[1718862637521,0.15861,65570.0,65569.0,1.17759869]
[1718862638668,0.15861,65570.0,65569.0,1.18659869]
[1718862639149,0.15861,65570.0,65569.0,1.17759869]
[1718862639349,0.15861,65570.0,65569.0,1.20559869]
[1718862640336,0.15861,65570.0,65569.0,1.51062069]
[1718862641541,0.15861,65570.0,65569.0,1.20559869]
[1718862641855,0.15861,65570.0,65569.0,1.19159869]
[1718862642055,0.15861,65570.0,65569.0,1.20559869]
[1718862642352,0.15861,65570.0,65569.0,1.18159869]
[1718862642553,0.15861,65570.0,65569.0,0.87657669]
[1718862642771,0.15861,65570.0,65569.0,0.86257669]
[1718862642954,0.15861,65570.0,65569.0,1.16759869]
[1718862643156,0.15861,65570.0,65569.0,1.19559869]
[1718862644074,0.15861,65570.0,65569.0,0.65347669]
[1718862645483,0.15861,65570.0,65569.0,0.19594369]
[1718862646999,0.311118,65570.0,65569.0,0.19594369]
[1718862647222,0.3206239,65570.0,65569.0,0.19594369]
[1718862647849,0.3205239,65570.0,65569.0,0.19594369]
[1718862648660,0.3204239,65570.0,65569.0,0.19594369]
[1718862649072,0.6254409,65570.0,65569.0,0.19594369]
[1718862649275,0.8330409,65570.0,65569.0,0.18056112]
[1718862649478,1.4430749,65570.0,65569.0,0.18056112]
[1718862649658,1.1321569,65570.0,65569.0,0.18095997]
[1718862649865,1.2846649,65570.0,65569.0,0.18056112]
[1718862650613,1.2846649,65570.0,65569.0,0.16656112]
[1718862650986,1.28968118,65570.0,65569.0,0.16890112]
[1718862651190,1.28968118,65570.0,65569.0,0.01634]
[1718862651191,1.59469818,65570.0,65569.0,0.01634]
[1718862651579,1.59469818,65570.0,65569.0,0.00234]
[1718862651782,1.59469818,65570.0,65569.0,0.01434]
[1718862652061,1.69469818,65570.0,65569.0,0.02534]
[1718862652436,1.69469818,65570.0,65569.0,0.01434]
[1718862652849,1.68719228,65570.0,65569.0,0.01534]
[1718862653050,1.72775719,65570.0,65569.0,0.01534]
[1718862653419,1.72575719,65570.0,65569.0,0.00234]
[1718862653819,1.81708606,65570.0,65569.0,0.00234]
[1718862654209,1.81708606,65570.0,65569.0,0.00634]
[1718862654420,1.81708606,65570.0,65569.0,0.00234]
[1718862654718,1.81808606,65570.0,65569.0,0.00234]
[1718862654907,1.81908606,65570.0,65569.0,0.00334]
[1718862655054,1.87316978,65570.0,65569.0,0.00334]
[1718862655260,1.78585719,65570.0,65569.0,0.00334]
[1718862655462,1.78585719,65570.0,65569.0,0.00434]
[1718862655773,1.78685719,65570.0,65569.0,0.00434]
[1718862655990,1.78545065,65570.0,65569.0,0.00334]
[1718862656187,1.78345065,65570.0,65569.0,0.00234]
[1718862656460,1.78445065,65570.0,65569.0,0.00234]
[1718862657117,1.78445065,65570.0,65569.0,0.00334]
[1718862657520,1.78445065,65570.0,65569.0,0.00234]
[1718862658050,1.78345065,65570.0,65569.0,0.00234]
[1718862658278,1.74429228,65570.0,65569.0,0.00234]
[1718862658593,1.74529228,65570.0,65569.0,0.00334]
[1718862658800,1.74529228,65570.0,65569.0,0.00234]
[1718862658979,1.78345065,65570.0,65569.0,0.00234]
[1718862659151,1.78445065,65570.0,65569.0,0.00234]
[1718862661099,2.08946765,65570.0,65569.0,0.00234]
[1718862661299,2.326121,65570.0,65569.0,0.00234]
[1718862661641,2.1890688,65570.0,65569.0,0.00234]
[1718862663032,2.19857785,65570.0,65569.0,0.00234]
[1718862663551,2.24857785,65570.0,65569.0,0.00234]
[1718862664202,2.40113199,65570.0,65569.0,0.00234]
[1718862664532,2.24857785,65570.0,65569.0,0.00234]
[1718862665230,2.30463637,65570.0,65569.0,0.003286]
[1718862665615,2.14593522,65570.0,65569.0,0.003286]
[1718862665823,2.30463637,65570.0,65569.0,0.003286]
[1718862668077,2.14593522,65570.0,65569.0,0.003286]
[1718862668303,2.20503522,65570.0,65569.0,0.003286]
[1718862668702,2.15503522,65570.0,65569.0,0.003286]
[1718862669002,2.20503522,65570.0,65569.0,0.003286]
[1718862669409,2.34204352,65570.0,65569.0,0.003286]
[1718862670335,2.24944352,65570.0,65569.0,0.003286]
[1718862670567,2.29234352,65570.0,65569.0,0.003286]
[1718862672695,2.29845752,65570.0,65569.0,0.003286]
[1718862673249,2.16144922,65570.0,65569.0,0.003286]
[1718862674290,2.11144922,65570.0,65569.0,0.003286]
[1718862674494,2.29845752,65570.0,65569.0,0.003286]
[1718862674696,2.16144922,65570.0,65569.0,0.003286]
[1718862675316,2.04644922,65570.0,65569.0,0.003286]
[1718862675817,1.9903907,65570.0,65569.0,0.003286]
[1718862677738,2.01811862,65570.0,65569.0,0.003286]
[1718862678955,1.95901862,65570.0,65569.0,0.003286]
[1718862679176,2.01811862,65570.0,65569.0,0.003286]
[1718862680211,1.27939894,65570.0,65569.0,0.003286]
[1718862680431,1.24328205,65570.0,65569.0,0.20848485]
[1718862680647,1.23716805,65570.0,65569.0,0.20848485]
[1718862681311,0.87305105,65570.0,65569.0,0.20848485]
[1718862681517,0.93115105,65570.0,65569.0,0.20848485]
[1718862681940,0.93215105,65570.0,65569.0,0.20848485]
[1718862682360,0.93115105,65570.0,65569.0,0.20848485]
[1718862682564,0.93115105,65570.0,65569.0,0.20948485]
[1718862683549,0.87205105,65570.0,65569.0,0.22446857]
[1718862683757,0.87205105,65570.0,65569.0,0.22646857]
[1718862684056,0.16201705,65570.0,65569.0,0.37902969]
[1718862684261,0.00950905,65570.0,65569.0,0.37902969]
[1718862684432,0.16201705,65570.0,65569.0,0.36364712]
[1718862684635,0.22111705,65570.0,65569.0,0.37902969]
[1718862685064,0.22111705,65570.0,65569.0,0.37802969]
[1718862685221,0.06860905,65570.0,65569.0,0.37802969]
[1718862685421,0.00950905,65570.0,65569.0,0.38402969]
[1718862685702,0.00950905,65571.0,65570.0,0.21118257]
[1718862685990,0.152506,65572.0,65571.0,0.21118257]
[1718862686151,0.152506,65572.0,65571.0,0.36374369]
[1718862686152,0.16201259,65572.0,65571.0,0.36374369]
[1718862686743,0.00950659,65572.0,65571.0,0.36374369]
[1718862687131,0.16201059,65572.0,65571.0,0.36374369]
[1718862687496,0.16201059,65572.0,65571.0,0.36638369]
[1718862688678,0.16201059,65572.0,65571.0,0.37238369]
[1718862689365,0.16201059,65572.0,65571.0,0.36638369]
[1718862689576,0.16201059,65572.0,65571.0,0.37438369]
[1718862689836,0.16201059,65572.0,65571.0,0.38138369]
[1718862689837,0.00950659,65572.0,65571.0,0.38138369]
[1718862690063,0.00950659,65572.0,65571.0,0.53688969]
[1718862691770,0.00950659,65572.0,65571.0,0.51888969]
[1718862691999,0.00950659,65572.0,65571.0,0.52888969]
[1718862692783,0.00950659,65572.0,65571.0,0.51888969]
[1718862693032,0.00950659,65572.0,65571.0,0.37738369]
[1718862693286,0.00950659,65572.0,65571.0,0.38938369]
[1718862693514,0.00950659,65572.0,65571.0,0.36638369]
[1718862693973,0.00950659,65572.0,65571.0,0.37838369]
[1718862695458,0.00950659,65572.0,65571.0,0.38938369]
[1718862695714,0.77202659,65572.0,65571.0,0.30118369]
[1718862695952,0.83112659,65572.0,65571.0,0.38988369]
[1718862696455,0.46701859,65572.0,65571.0,0.38988369]
[1718862696767,0.52611859,65572.0,65571.0,0.38988369]
[1718862697051,0.52611859,65572.0,65571.0,0.37489997]
[1718862697301,0.52611859,65572.0,65571.0,0.38988369]
[1718862698039,0.46701859,65572.0,65571.0,0.38988369]
[1718862698291,0.52611793,65572.0,65571.0,0.38988369]
[1718862699528,0.52697793,65572.0,65571.0,0.38988369]
[1718862699988,0.83198593,65572.0,65571.0,0.38988369]
[1718862702904,0.83198593,65572.0,65571.0,0.30118369]
[1718862704821,0.77288593,65572.0,65571.0,0.30118369]
[1718862705752,0.77288593,65572.0,65571.0,0.29018369]
[1718862705984,0.77288593,65572.0,65571.0,0.30118369]
[1718862706474,0.77288593,65572.0,65571.0,0.29018369]
[1718862706728,0.77288593,65572.0,65571.0,0.30118369]
[1718862707444,1.07789393,65572.0,65571.0,0.28580112]
[1718862707679,1.07789393,65572.0,65571.0,0.17820112]
[1718862708658,1.068388,65572.0,65571.0,0.17820112]
[1718862708879,1.07789458,65572.0,65571.0,0.17820112]
[1718862710287,1.13699458,65572.0,65571.0,0.17820112]
[1718862711258,1.13699458,65572.0,65571.0,0.17859997]
[1718862711512,0.77288658,65572.0,65571.0,0.17859997]
[1718862711712,0.83198658,65572.0,65571.0,0.17859997]
[1718862712131,0.83198658,65572.0,65571.0,0.37049997]
[1718862713925,0.83198658,65572.0,65571.0,0.37010112]
[1718862714091,0.77288658,65572.0,65571.0,0.28629997]
[1718862714304,0.83198658,65572.0,65571.0,0.38049997]
[1718862714437,0.83198658,65572.0,65571.0,0.38548369]
[1718862714636,0.83198658,65572.0,65571.0,0.38049997]
[1718862714836,0.77288658,65572.0,65571.0,0.38548369]
[1718862716287,0.77288658,65572.0,65571.0,0.37049997]
[1718862718460,0.77288658,65572.0,65571.0,0.38548369]
[1718862718773,0.77288658,65572.0,65571.0,0.37049997]
[1718862719885,0.77288658,65572.0,65571.0,0.38548369]
[1718862722304,0.77288635,65572.0,65571.0,0.38548369]
[1718862723751,0.76338,65572.0,65571.0,0.38548369]
[1718862723879,0.77288635,65572.0,65571.0,0.38548369]
[1718862724288,0.86436682,65572.0,65571.0,0.38548369]
[1718862724535,0.85144582,65572.0,65571.0,0.38548369]
[1718862725262,0.75996535,65572.0,65571.0,0.38548369]
[1718862725470,0.750459,65572.0,65571.0,0.38548369]
[1718862725667,0.75996534,65572.0,65571.0,0.38548369]
[1718862726208,0.75996534,65572.0,65571.0,0.37010112]
[1718862726418,0.87431593,65572.0,65571.0,0.37010112]
[1718862726695,0.87431593,65572.0,65571.0,0.17859997]
[1718862726895,0.87431593,65572.0,65571.0,0.17820112]
[1718862727133,0.87431593,65572.0,65571.0,0.36409997]
[1718862727336,0.81906534,65572.0,65571.0,0.36409997]
[1718862727541,0.9335628,65572.0,65571.0,0.36409997]
[1718862728518,0.81906534,65572.0,65571.0,0.36409997]
[1718862728874,0.45495734,65572.0,65571.0,0.37908369]
[1718862729087,0.51405734,65572.0,65571.0,0.37908369]
[1718862731001,0.504551,65572.0,65571.0,0.37908369]
[1718862731193,0.51405725,65572.0,65571.0,0.37908369]
[1718862733267,0.81906525,65572.0,65571.0,0.36409997]
[1718862733469,0.45495725,65572.0,65571.0,0.37908369]
[1718862733638,0.56948343,65572.0,65571.0,0.37908369]
[1718862734438,0.45495725,65572.0,65571.0,0.37908369]
[1718862734591,0.56948411,65572.0,65571.0,0.37908369]
[1718862734792,0.45495725,65572.0,65571.0,0.37908369]
[1718862735221,0.44551873,65572.0,65571.0,0.37908369]
[1718862736017,0.44551873,65572.0,65571.0,0.36808369]
[1718862736215,0.56004679,65572.0,65571.0,0.36808369]
[1718862736548,0.44551873,65572.0,65571.0,0.37908369]
[1718862736889,0.56004679,65572.0,65571.0,0.37908369]
[1718862737301,0.56004679,65572.0,65571.0,0.36808369]
[1718862737715,0.44551873,65572.0,65571.0,0.37908369]
[1718862738338,0.14051073,65572.0,65571.0,0.37908369]
[1718862738955,0.01036625,65572.0,65571.0,0.37908369]
[1718862739209,0.01036625,65572.0,65571.0,0.40208369]
[1718862740588,0.0103659,65572.0,65571.0,0.40208369]
[1718862742551,0.10199294,65572.0,65571.0,0.40208369]
[1718862742755,0.0103659,65572.0,65571.0,0.40208369]
[1718862742987,0.10199285,65572.0,65571.0,0.40208369]
[1718862744365,0.0103659,65572.0,65571.0,0.40208369]
[1718862744577,0.00018424,65573.0,65572.0,0.57428657]
[1718862744779,1.0,65576.0,65575.0,1.12536757]
[1718862744985,1.0,65576.0,65575.0,1.36002869]
[1718862745350,1.0,65576.0,65575.0,1.66502269]
[1718862745919,0.8888,65576.0,65575.0,1.67902269]
[1718862746128,0.6887,65576.0,65575.0,2.14491669]
[1718862746330,0.09152685,65594.0,65577.0,1.60292657]
[1718862746529,0.06860592,65594.0,65577.0,1.85476941]
[1718862747028,0.06860592,65594.0,65577.0,2.15975341]
[1718862747197,0.06860592,65596.0,65577.0,2.15975341]
[1718862747616,0.06860592,65596.0,65577.0,2.05975341]
[1718862747821,0.06860592,65596.0,65577.0,2.07175341]
[1718862747982,0.06860592,65597.0,65577.0,2.07175341]
[1718862748181,0.1,65597.0,65577.0,2.07175341]
[1718862748408,0.152451,65595.0,65577.0,2.13085341]
[1718862748609,0.304901,65595.0,65577.0,1.51558769]
[1718862748807,0.152465,65589.0,65577.0,1.52958769]
[1718862749095,0.152465,65589.0,65577.0,1.58868769]
[1718862749320,0.152465,65589.0,65577.0,1.57468769]
[1718862749549,0.304936,65588.0,65577.0,0.53163569]
[1718862749753,0.152484,65581.0,65577.0,0.18194369]
[1718862750179,0.152484,65581.0,65577.0,0.16794369]
[1718862750387,0.152484,65581.0,65577.0,0.18194369]
[1718862750584,0.152484,65581.0,65577.0,0.19594369]
[1718862750785,0.152485,65580.0,65577.0,0.18194369]
[1718862751035,0.152479,65583.0,65577.0,0.35743569]
[1718862751246,0.152479,65583.0,65577.0,0.37143569]
[1718862751409,0.152479,65583.0,65577.0,0.35743569]
[1718862751820,0.152479,65583.0,65577.0,0.67241969]
[1718862752195,0.152479,65583.0,65577.0,0.68641969]
[1718862752650,0.152479,65583.0,65577.0,0.67241969]
[1718862753058,0.152479,65583.0,65577.0,0.68641969]
[1718862753617,0.152477,65584.0,65577.0,0.68641969]
[1718862754105,0.32885267,65588.0,65577.0,0.68641969]
[1718862754517,0.152474,65585.0,65577.0,0.68641969]
[1718862758944,0.0829,65582.0,65577.0,0.67641969]
[1718862760330,0.1074,65583.0,65577.0,0.67641969]
[1718862761053,0.259878,65583.0,65577.0,0.67641969]
[1718862761259,0.152481,65582.0,65577.0,0.67641969]
[1718862762288,0.152481,65582.0,65577.0,0.37143569]
[1718862763162,0.152483,65581.0,65577.0,0.37143569]
[1718862763738,0.15248,65582.0,65577.0,0.37143569]
[1718862764508,0.00844968,65578.0,65577.0,0.37143569]
[1718862766437,0.00844968,65578.0,65577.0,0.67641969]
[1718862767062,0.00844968,65578.0,65577.0,0.68641969]
[1718862768135,0.00844968,65578.0,65577.0,0.88521969]
[1718862768963,0.00844968,65578.0,65577.0,0.87521969]
[1718862769496,0.00844968,65578.0,65577.0,0.67641969]
[1718862770562,0.66491968,65578.0,65577.0,0.18095997]
[1718862770786,1.02899968,65578.0,65577.0,0.18095997]
[1718862771189,1.02899968,65578.0,65577.0,0.19594369]
[1718862773698,0.96989968,65578.0,65577.0,0.19594369]
[1718862773897,0.96983116,65578.0,65577.0,0.19594369]
[1718862775161,0.77083116,65578.0,65577.0,0.19594369]
[1718862775379,0.46585116,65578.0,65577.0,0.19594369]
[1718862775580,0.304971,65580.0,65579.0,0.01538257]
[1718862775805,0.762427,65580.0,65579.0,0.16794369]
[1718862776424,0.762427,65580.0,65579.0,0.17172369]
[1718862776795,0.762427,65580.0,65579.0,0.18572369]
[1718862777002,0.457456,65580.0,65579.0,0.18572369]
[1718862777203,0.457414,65586.0,65585.0,0.00039885]
[1718862777400,0.45742,65585.0,65584.0,0.00039885]
[1718862777605,0.61652,65585.0,65584.0,0.00039885]
[1718862777802,0.921467,65585.0,65584.0,0.00039885]
[1718862778814,0.921467,65585.0,65584.0,0.01538257]
[1718862779225,0.862367,65585.0,65584.0,0.01538257]
[1718862779425,0.862367,65585.0,65584.0,0.01988257]
[1718862779784,0.55742,65585.0,65584.0,0.18444369]
[1718862779903,0.862367,65585.0,65584.0,0.18444369]